fUSD/lending_fUSD_20241220
["ID","MTS","AMOUNT","RATE_DAILY","PERIOD"]
[346100717,1734705100798,-500.0,0.00023013,4]
[346100718,1734705100807,-213.85786522,0.00023013,4]
[346100719,1734705100816,-500.0,0.00023013,4]
[346100720,1734705100826,-647.63,0.00023013,4]
[346100721,1734705100835,-500.0,0.00023013,4]
[346100722,1734705100844,-500.0,0.00023013,4]
[346100723,1734705100853,-500.0,0.00023013,4]
[346100724,1734705100863,-500.0,0.00023013,4]
[346100725,1734705100872,-500.0,0.00023013,4]
[346100726,1734705100881,-500.0,0.00023013,4]
[346100727,1734705100891,-500.0,0.00023013,4]
[346100728,1734705100902,-500.0,0.00023013,4]
[346100729,1734705100911,-500.0,0.00023013,4]
[346100730,1734705100921,-619.34,0.00023013,4]
[346100731,1734705100930,-393.29698534,0.00023013,4]
[346100732,1734705100944,-500.0,0.00023013,4]
[346100733,1734705100953,-500.0,0.00023013,4]
[346100734,1734705100962,-500.0,0.00023013,4]
[346100735,1734705100972,-1919.94,0.00023013,4]
[346100736,1734705100981,-500.0,0.00023013,4]
[346100737,1734705100991,-500.0,0.00023013,4]
[346100738,1734705101002,-500.0,0.00023013,4]
[346100739,1734705101012,-500.0,0.00023013,4]
[346100740,1734705101021,-1914.57,0.00023013,4]
[346100741,1734705101030,-500.0,0.00023013,4]
[346100742,1734705101039,-500.0,0.00023013,4]
[346100743,1734705101048,-733.73,0.00023013,4]
[346100744,1734705101058,-500.0,0.00023013,4]
[346100745,1734705101067,-500.0,0.00023013,4]
[346100746,1734705101076,-696.31,0.00023013,4]
[346100747,1734705101086,-704.45,0.00023013,4]
[346100748,1734705101095,-500.0,0.00023013,2]
[346100749,1734705101104,-500.0,0.00023013,4]
[346100750,1734705101113,-500.0,0.00023013,4]
[346100751,1734705101122,-865.58,0.00023013,4]
[346100752,1734705101132,-624.83,0.00023013,4]
[346100753,1734705101141,-975.48,0.00023013,4]
[346100754,1734705101151,-515.76,0.00023013,4]
[346100755,1734705101160,-500.0,0.00023013,4]
[346100756,1734705101169,-500.0,0.00023013,4]
[346100757,1734705101178,-500.0,0.00023013,4]
[346100758,1734705101188,-500.0,0.00023013,4]
[346100759,1734705101202,-500.0,0.00023013,4]
[346100760,1734705101211,-500.0,0.00023013,4]
[346100761,1734705101220,-500.0,0.00023013,4]
[346100762,1734705101230,-732.91,0.00023013,4]
[346100763,1734705101239,-1106.39,0.00023013,4]
[346100764,1734705101248,-505.51,0.00023013,4]
[346100765,1734705101258,-500.0,0.00023013,4]
[346100766,1734705101268,-880.48,0.00023013,4]
[346100767,1734705101277,-500.0,0.00023013,4]
[346100768,1734705101287,-500.0,0.00023013,4]
[346100769,1734705101299,-500.0,0.00023013,4]
[346100770,1734705101310,-500.0,0.00023013,4]
[346100771,1734705101320,-500.0,0.00023013,4]
[346100772,1734705101329,-500.0,0.00023013,4]
[346100773,1734705101339,-500.0,0.00023013,4]
[346100774,1734705101347,-500.0,0.00023013,4]
[346100775,1734705101357,-500.0,0.00023013,4]
[346100776,1734705101366,-549.35,0.00023013,4]
[346100777,1734705101375,-500.0,0.00023013,4]
[346100778,1734705101385,-259.34897652,0.00023013,4]
[346100779,1734705101394,-500.0,0.00023013,4]
[346100780,1734705101404,-500.0,0.00023013,4]
[346100781,1734705101413,-500.0,0.00023013,4]
[346100782,1734705101423,-500.0,0.00023013,4]
[346100783,1734705101432,-500.0,0.00023013,4]
[346100784,1734705101444,-500.0,0.00023013,4]
[346100785,1734705101454,-500.0,0.00023013,4]
[346100786,1734705101463,-500.0,0.00023013,4]
[346100787,1734705101473,-500.0,0.00023013,4]
[346100788,1734705101482,-500.0,0.00023013,4]
[346100789,1734705101492,-500.0,0.00023013,4]
[346100790,1734705101501,-575.74,0.00023013,4]
[346100791,1734705101511,-500.0,0.00023013,4]
[346100792,1734705101521,-500.0,0.00023013,4]
[346100793,1734705101530,-626.11,0.00023013,4]
[346100794,1734705101540,-500.0,0.00023013,4]
[346100795,1734705101549,-500.0,0.00023013,4]
[346100796,1734705101559,-500.0,0.00023013,4]
[346100797,1734705101568,-892.44,0.00023013,4]
[346100798,1734705101577,-867.32,0.00023013,4]
[346100799,1734705101587,-500.0,0.00023013,4]
[346100800,1734705101598,-500.0,0.00023013,4]
[346100801,1734705101609,-500.0,0.00023013,4]
[346100802,1734705101619,-500.0,0.00023013,4]
[346100803,1734705101630,-572.67,0.00023013,4]
[346100804,1734705101639,-500.0,0.00023013,4]
[346100805,1734705101649,-882.96,0.00023013,4]
[346100806,1734705101658,-628.87,0.00023013,4]
[346100807,1734705101667,-500.0,0.00023013,4]
[346100808,1734705101677,-500.0,0.00023013,4]
[346100809,1734705101687,-500.0,0.00023013,4]
[346100810,1734705101698,-531.92,0.00023013,4]
[346100811,1734705101707,-500.0,0.00023013,4]
[346100812,1734705101717,-500.0,0.00023013,4]
[346100813,1734705101727,-1531.54,0.00023013,4]
[346100814,1734705101736,-797.56,0.00023013,4]
[346100815,1734705101747,-573.13,0.00023013,4]
[346100816,1734705101756,-500.0,0.00023013,4]
[346100817,1734705101766,-500.0,0.00023013,4]
[346100818,1734705101776,-500.0,0.00023013,4]
[346100819,1734705101786,-1191.56,0.00023013,4]
[346100820,1734705101796,-500.0,0.00023013,4]
[346100821,1734705101805,-1462.97,0.00023013,4]
[346100822,1734705101815,-898.63,0.00023013,4]
[346100823,1734705101825,-500.0,0.00023013,4]
[346100824,1734705101834,-690.32,0.00023013,4]
[346100825,1734705101844,-500.0,0.00023013,4]
[346100826,1734705101854,-500.0,0.00023013,4]
[346100827,1734705101863,-895.67,0.00023013,4]
[346100828,1734705101873,-500.0,0.00023013,4]
[346100829,1734705102040,-500.0,0.00023013,4]
[346100830,1734705102050,-2453.25,0.00023013,4]
[346100831,1734705102059,-500.0,0.00023013,4]
[346100832,1734705102069,-500.0,0.00023013,4]
[346100833,1734705102078,-500.0,0.00023013,4]
[346100834,1734705102088,-500.0,0.00023013,4]
[346100835,1734705102097,-500.0,0.00023013,4]
[346100836,1734705102107,-535.73,0.00023013,4]
[346100837,1734705102117,-596.16,0.00023013,4]
[346100838,1734705102127,-500.0,0.00023013,4]
[346100839,1734705102136,-2002.3,0.00023013,4]
[346100840,1734705102146,-500.0,0.00023013,4]
[346100841,1734705102155,-500.0,0.00023013,4]
[346100842,1734705102164,-500.0,0.00023013,4]
[346100843,1734705102174,-500.0,0.00023013,4]
[346100844,1734705102183,-500.0,0.00023013,4]
[346100845,1734705102194,-500.0,0.00023013,4]
[346100846,1734705102203,-2126.04,0.00023013,4]
[346100847,1734705102213,-1149.07,0.00023013,4]
[346100848,1734705102222,-1147.67,0.00023013,4]
[346100849,1734705102231,-1974.63,0.00023013,4]
[346100850,1734705102240,-922.26,0.00023013,4]
[346100851,1734705102250,-585.88,0.00023013,4]
[346100852,1734705102259,-645.53,0.00023013,4]
[346100853,1734705102269,-500.0,0.00023013,4]
[346100854,1734705102279,-1312.39,0.00023013,4]
[346100855,1734705102289,-1995.26,0.00023013,4]
[346100856,1734705102303,-626.7,0.00023013,4]
[346100857,1734705102318,-591.96,0.00023013,4]
[346100858,1734705102327,-500.0,0.00023013,4]
[346100859,1734705102337,-500.0,0.00023013,4]
[346100860,1734705102346,-4286.95,0.00023013,4]
[346100861,1734705102355,-1869.88,0.00023013,4]
[346100862,1734705102365,-1582.21,0.00023013,4]
[346100863,1734705102375,-500.0,0.00023013,4]
[346100864,1734705102386,-1996.44,0.00023013,4]
[346100865,1734705102396,-918.42,0.00023013,4]
[346100866,1734705102405,-500.0,0.00023013,4]
[346100867,1734705102415,-500.0,0.00023013,4]
[346100868,1734705102424,-2729.02,0.00023013,4]
[346100869,1734705102433,-500.0,0.00023013,4]
[346100870,1734705102443,-901.44,0.00023013,4]
[346100871,1734705102452,-556.20592351,0.00023013,4]
[346100872,1734705102463,-576.4,0.00023013,4]
[346100873,1734705102473,-500.0,0.00023013,4]
[346100874,1734705102483,-500.0,0.00023013,4]
[346100875,1734705102493,-2844.5,0.00023013,4]
[346100876,1734705102502,-567.3,0.00023013,4]
[346100877,1734705102511,-2473.03,0.00023013,4]
[346100878,1734705102520,-4012.09,0.00023013,4]
[346100879,1734705102530,-500.0,0.00023013,4]
[346100880,1734705102539,-500.0,0.00023013,4]
[346100881,1734705102548,-500.0,0.00023013,4]
[346100882,1734705102558,-516.15,0.00023013,4]
[346100883,1734705102567,-542.96,0.00023013,4]
[346100884,1734705102576,-877.15,0.00023013,4]
[346100885,1734705102586,-1483.16,0.00023013,4]
[346100886,1734705102595,-500.0,0.00023013,4]
[346100887,1734705102604,-3922.15,0.00023013,4]
[346100888,1734705102614,-881.23,0.00023013,4]
[346100889,1734705102623,-2575.39,0.00023013,4]
[346100890,1734705102633,-14313.01,0.00023013,4]
[346100891,1734705102642,-500.0,0.00023013,4]
[346100892,1734705102652,-500.0,0.00023013,4]
[346100893,1734705102661,-550.65,0.00023013,4]
[346100894,1734705102670,-5233.77,0.00023013,4]
[346100895,1734705102679,-1199.62,0.00023013,4]
[346100896,1734705102688,-526.33,0.00023013,4]
[346100897,1734705102700,-1198.28,0.00023013,4]
[346100898,1734705102709,-500.0,0.00023013,4]
[346100899,1734705102718,-822.83,0.00023013,4]
[346100900,1734705102728,-500.0,0.00023013,4]
[346100901,1734705102738,-1305.96,0.00023013,4]
[346100902,1734705102747,-500.0,0.00023013,4]
[346100903,1734705102757,-2054.82,0.00023013,4]
[346100904,1734705102767,-781.1,0.00023013,4]
[346100905,1734705102777,-500.0,0.00023013,4]
[346100906,1734705102787,-2976.46,0.00023013,4]
[346100907,1734705102796,-532.86,0.00023013,4]
[346100908,1734705102806,-1376.74,0.00023013,4]
[346100909,1734705102816,-1406.29,0.00023013,4]
[346100910,1734705102825,-500.0,0.00023013,4]
[346100911,1734705102835,-732.83,0.00023013,4]
[346100912,1734705102844,-2019.8,0.00023013,4]
[346100913,1734705102854,-500.0,0.00023013,4]
[346100914,1734705102863,-594.71,0.00023013,4]
[346100915,1734705102873,-623.99,0.00023013,4]
[346100916,1734705102882,-14207.49,0.00023013,4]
[346100917,1734705102892,-207.565158,0.00023013,4]
[346100918,1734705102902,-3380.89,0.00023013,4]
[346100919,1734705102912,-500.0,0.00023013,4]
[346100920,1734705102921,-1870.48,0.00023013,4]
[346100921,1734705102930,-584.56,0.00023013,4]
[346100922,1734705102940,-2641.01,0.00023013,4]
[346100923,1734705102952,-1151.74,0.00023013,4]
[346100924,1734705102962,-1068.83,0.00023013,4]
[346100925,1734705102972,-500.0,0.00023013,4]
[346100926,1734705102982,-500.0,0.00023013,4]
[346100927,1734705102991,-2387.91,0.00023013,4]
[346100928,1734705103001,-500.0,0.00023013,4]
[346100929,1734705103011,-2569.35,0.00023013,4]
[346100930,1734705103020,-500.0,0.00023013,4]
[346100931,1734705103029,-1641.53,0.00023013,4]
[346100932,1734705103039,-7684.97,0.00023013,4]
[346100933,1734705103048,-500.0,0.00023013,4]
[346100934,1734705103057,-500.0,0.00023013,4]
[346100935,1734705103067,-1122.02,0.00023013,4]
[346100936,1734705103075,-500.0,0.00023013,4]
[346100937,1734705103085,-500.0,0.00023013,4]
[346100938,1734705103094,-3739.73,0.00023013,4]
[346100939,1734705103104,-1657.74,0.00023013,4]
[346100940,1734705103114,-500.0,0.00023013,4]
[346100941,1734705103123,-572.34,0.00023013,4]
[346100942,1734705103132,-1002.92,0.00023013,4]
[346100943,1734705103142,-500.0,0.00023013,4]
[346100944,1734705103151,-500.0,0.00023013,4]
[346100945,1734705103160,-500.0,0.00023013,4]
[346100946,1734705103170,-1449.75,0.00023013,4]
[346100947,1734705103179,-4285.0,0.00023013,4]
[346100948,1734705103189,-500.0,0.00023013,4]
[346100949,1734705103200,-1876.8,0.00023013,4]
[346100950,1734705103209,-500.0,0.00023013,4]
[346100951,1734705103218,-3137.09,0.00023013,4]
[346100952,1734705103228,-500.0,0.00023013,4]
[346100953,1734705103237,-500.0,0.00023013,4]
[346100954,1734705103246,-500.0,0.00023013,4]
[346100955,1734705103255,-171.847622,0.00023013,4]
[346100956,1734705103264,-938.17,0.00023013,4]
[346100957,1734705103275,-500.0,0.00023013,4]
[346100958,1734705103284,-1128.3,0.00023013,4]
[346100959,1734705103293,-500.0,0.00023013,4]
[346100960,1734705103307,-630.09,0.00023013,4]
[346100961,1734705103317,-653.61,0.00023013,4]
[346100962,1734705103326,-500.0,0.00023013,4]
[346100963,1734705103335,-1928.85,0.00023013,4]
[346100964,1734705103346,-2099.69,0.00023013,4]
[346100965,1734705103355,-7043.04,0.00023013,4]
[346100966,1734705103365,-500.0,0.00023013,4]
[346100967,1734705103374,-2163.13,0.00023013,4]
[346100968,1734705103384,-500.0,0.00023013,4]
[346100969,1734705103394,-970.03,0.00023013,4]
[346100970,1734705103403,-2134.52,0.00023013,4]
[346100971,1734705103412,-502.32498089,0.00023013,4]
[346100972,1734705103421,-500.0,0.00023013,4]
[346100973,1734705103431,-500.0,0.00023013,4]
[346100974,1734705103441,-2369.63,0.00023013,4]
[346100975,1734705103452,-1668.69,0.00023013,4]
[346100976,1734705103461,-543.78733772,0.00023013,4]
[346100977,1734705103470,-500.0,0.00023013,4]
[346100978,1734705103480,-500.0,0.00023013,4]
[346100979,1734705103489,-500.0,0.00023013,4]
[346100980,1734705103499,-500.0,0.00023013,4]
[346100981,1734705103508,-500.0,0.00023013,4]
[346100982,1734705103518,-500.0,0.00023013,4]
[346100983,1734705103528,-409.05429833,0.00023013,4]
[346100984,1734705103537,-653.02,0.00023013,4]
[346100985,1734705103547,-500.0,0.00023013,4]
[346100986,1734705103556,-500.0,0.00023013,4]
[346100987,1734705103565,-500.0,0.00023013,4]
[346100988,1734705103575,-505.43,0.00023013,4]
[346100989,1734705103584,-1168.08,0.00023013,4]
[346100990,1734705103594,-500.0,0.00023013,4]
[346100991,1734705103603,-533.99,0.00023013,4]
[346100992,1734705103613,-709.06,0.00023013,4]
[346100993,1734705103623,-500.0,0.00023013,4]
[346100994,1734705103632,-1659.64,0.00023013,4]
[346100995,1734705103641,-500.0,0.00023013,4]
[346100996,1734705103650,-729.79,0.00023013,4]
[346100997,1734705103660,-500.0,0.00023013,4]
[346100998,1734705103670,-500.0,0.00023013,4]
[346100999,1734705103679,-875.71,0.00023013,4]
[346101000,1734705103689,-644.22,0.00023013,4]
[346101001,1734705103701,-560.49,0.00023013,4]
[346101002,1734705103711,-500.0,0.00023013,4]
[346101003,1734705103721,-11283.25,0.00023013,4]
[346101004,1734705103731,-500.0,0.00023013,4]
[346101005,1734705103740,-500.0,0.00023013,4]
[346101006,1734705103751,-1169.27,0.00023013,4]
[346101007,1734705103761,-500.0,0.00023013,4]
[346101008,1734705103771,-500.0,0.00023013,4]
[346101009,1734705103780,-1083.29,0.00023013,4]
[346101010,1734705103790,-500.0,0.00023013,4]
[346101011,1734705103799,-1374.41,0.00023013,4]
[346101012,1734705103809,-500.0,0.00023013,4]
[346101013,1734705103818,-500.0,0.00023013,4]
[346101014,1734705103828,-500.0,0.00023013,4]
[346101015,1734705103837,-500.0,0.00023013,4]
[346101016,1734705103847,-500.0,0.00023013,4]
[346101017,1734705103856,-1644.02,0.00023013,4]
[346101018,1734705103866,-766.85,0.00023013,4]
[346101019,1734705103876,-1990.15,0.00023013,4]
[346101020,1734705103886,-500.0,0.00023013,4]
[346101021,1734705103896,-1025.82,0.00023013,4]
[346101022,1734705103905,-500.0,0.00023013,4]
[346101023,1734705103915,-1150.78,0.00023013,4]
[346101024,1734705103925,-500.0,0.00023013,4]
[346101025,1734705103935,-500.0,0.00023013,4]
[346101026,1734705103950,-500.0,0.00023013,4]
[346101027,1734705103960,-626.0,0.00023013,4]
[346101028,1734705103973,-2550.51,0.00023013,4]
[346101029,1734705103983,-500.0,0.00023013,4]
[346101030,1734705103992,-310.87735654,0.00023013,4]
[346101031,1734705104002,-1894.92,0.00023013,4]
[346101032,1734705104012,-500.0,0.00023013,4]
[346101033,1734705104022,-1717.15,0.00023013,4]
[346101034,1734705104033,-777.61,0.00023013,4]
[346101035,1734705104043,-500.0,0.00023013,3]
[346101036,1734705104052,-2160.93,0.00023013,4]
[346101037,1734705104063,-500.0,0.00023013,4]
[346101038,1734705104072,-500.0,0.00023013,4]
[346101039,1734705104082,-500.0,0.00023013,4]
[346101040,1734705104092,-500.0,0.00023013,4]
[346101041,1734705104102,-1472.85,0.00023013,4]
[346101042,1734705104112,-1027.36952655,0.0002303,2]
[346101043,1734705104123,-150.0,0.00023033,2]
[346101044,1734705104133,-150.0,0.00023045,2]
[346101045,1734705104144,-1500.0,0.00023075,2]
[346101046,1734705104154,-321.47526,0.00023088,7]
[346101047,1734705104163,-152.0,0.00023105,7]
[346101048,1734705104173,-1030.94312085,0.00023105,2]
[346101049,1734705104183,-536.06571206,0.00023105,2]
[346101050,1734705104197,-206.0,0.0002314,2]
[346101051,1734705104206,-49849.07458459,0.000232,2]
[346101052,1734705104216,-222.369391,0.00023217,2]
[346101053,1734705104226,-567.56448968,0.0002322,2]
[346101054,1734705104236,-1500.0,0.00023234,2]
[346101055,1734705104246,-208.0,0.0002325,2]
[346101056,1734705104255,-165.68,0.00023265,2]
[346101057,1734705104265,-250.237156,0.00023287,4]
[346101058,1734705104275,-500.0,0.00023287,4]
[346101059,1734705104285,-500.0,0.00023287,4]
[346101060,1734705104296,-500.0,0.00023287,4]
[346101061,1734705104308,-500.0,0.00023287,4]
[346101062,1734705104317,-500.0,0.00023287,4]
[346101063,1734705104327,-347.21780707,0.00023287,4]
[346101064,1734705104338,-500.0,0.00023287,4]
[346101065,1734705104348,-500.0,0.00023287,4]
[346101066,1734705104357,-500.0,0.00023287,4]
[346101067,1734705104367,-280.16867199,0.00023287,4]
[346101068,1734705104541,-500.0,0.00023287,4]
[346101069,1734705104552,-500.0,0.00023287,4]
[346101070,1734705104562,-500.0,0.00023287,4]
[346101071,1734705104571,-507.28895841,0.00023287,4]
[346101072,1734705104581,-728.98,0.00023287,4]
[346101073,1734705104591,-500.0,0.00023287,4]
[346101074,1734705104601,-500.0,0.00023287,4]
[346101075,1734705104611,-500.0,0.00023287,4]
[346101076,1734705104620,-500.0,0.00023287,4]
[346101077,1734705104630,-500.0,0.00023287,4]
[346101078,1734705104639,-500.0,0.00023287,4]
[346101079,1734705104649,-500.0,0.00023287,4]
[346101080,1734705104658,-500.0,0.00023287,4]
[346101081,1734705104668,-500.0,0.00023287,4]
[346101082,1734705104677,-500.0,0.00023287,4]
[346101083,1734705104686,-500.0,0.00023287,4]
[346101084,1734705104700,-500.0,0.00023287,4]
[346101085,1734705104709,-500.0,0.00023287,4]
[346101086,1734705104718,-500.0,0.00023287,4]
[346101087,1734705104728,-500.0,0.00023287,4]
[346101088,1734705104737,-500.0,0.00023287,4]
[346101089,1734705104746,-500.0,0.00023287,4]
[346101090,1734705104756,-703.15,0.00023287,4]
[346101091,1734705104765,-500.0,0.00023287,4]
[346101092,1734705104774,-500.0,0.00023287,4]
[346101093,1734705104784,-256.81439835,0.00023287,4]
[346101094,1734705104793,-500.0,0.00023287,4]
[346101095,1734705104802,-500.0,0.00023287,4]
[346101096,1734705104812,-500.0,0.00023287,4]
[346101097,1734705104822,-473.64151674,0.00023287,4]
[346101098,1734705104831,-499.73450354,0.00023287,4]
[346101099,1734705104841,-500.0,0.00023287,4]
[346101100,1734705104850,-500.0,0.00023287,4]
[346101101,1734705104860,-500.0,0.00023287,4]
[346101102,1734705104870,-500.0,0.00023287,4]
[346101103,1734705104879,-567.86110683,0.00023287,4]
[346101104,1734705104889,-500.0,0.00023287,4]
[346101105,1734705104898,-161.37425291,0.00023287,4]
[346101106,1734705104908,-500.0,0.00023287,4]
[346101107,1734705104917,-500.0,0.00023287,4]
[346101108,1734705104927,-500.0,0.00023287,4]
[346101109,1734705104937,-500.0,0.00023287,4]
[346101110,1734705104948,-500.0,0.00023287,4]
[346101111,1734705104958,-500.0,0.00023287,4]
[346101112,1734705104967,-500.0,0.00023287,4]
[346101113,1734705104977,-500.0,0.00023287,4]
[346101114,1734705104986,-500.0,0.00023287,4]
[346101115,1734705104995,-500.0,0.00023287,4]
[346101116,1734705105005,-500.0,0.00023287,4]
[346101117,1734705105014,-500.0,0.00023287,4]
[346101118,1734705105024,-500.0,0.00023287,4]
[346101119,1734705105034,-500.0,0.00023287,4]
[346101120,1734705105044,-500.0,0.00023287,4]
[346101121,1734705105053,-500.0,0.00023287,4]
[346101122,1734705105063,-500.0,0.00023287,4]
[346101123,1734705105073,-500.0,0.00023287,4]
[346101124,1734705105083,-500.0,0.00023287,4]
[346101125,1734705105093,-500.0,0.00023287,4]
[346101126,1734705105103,-500.0,0.00023287,4]
[346101127,1734705105112,-500.0,0.00023287,4]
[346101128,1734705105122,-500.0,0.00023287,4]
[346101129,1734705105131,-500.0,0.00023287,4]
[346101130,1734705105141,-500.0,0.00023287,4]
[346101131,1734705105150,-500.0,0.00023287,4]
[346101132,1734705105160,-500.0,0.00023287,4]
[346101133,1734705105169,-500.0,0.00023287,4]
[346101134,1734705105178,-500.0,0.00023287,4]
[346101135,1734705105187,-500.0,0.00023287,4]
[346101136,1734705105199,-500.0,0.00023287,4]
[346101137,1734705105208,-500.0,0.00023287,4]
[346101138,1734705105217,-362.92,0.00023287,4]
[346101139,1734705105226,-507.46901568,0.00023287,4]
[346101140,1734705105236,-500.0,0.00023287,4]
[346101141,1734705105246,-532.03802504,0.00023287,4]
[346101142,1734705105255,-500.0,0.00023287,4]
[346101143,1734705105265,-500.0,0.00023287,4]
[346101144,1734705105274,-500.0,0.00023287,4]
[346101145,1734705105284,-500.0,0.00023287,4]
[346101146,1734705105294,-500.0,0.00023287,4]
[346101147,1734705105306,-500.0,0.00023287,4]
[346101148,1734705105316,-500.0,0.00023287,4]
[346101149,1734705105325,-318.48693113,0.00023287,4]
[346101150,1734705105335,-500.0,0.00023287,4]
[346101151,1734705105346,-509.20582337,0.00023287,4]
[346101152,1734705105355,-343.06114017,0.00023287,4]
[346101153,1734705105365,-500.0,0.00023287,4]
[346101154,1734705105377,-500.0,0.00023287,4]
[346101155,1734705105387,-500.0,0.00023287,4]
[346101156,1734705105396,-500.0,0.00023287,4]
[346101157,1734705105406,-500.0,0.00023287,4]
[346101158,1734705105415,-500.0,0.00023287,4]
[346101159,1734705105424,-500.0,0.00023287,4]
[346101160,1734705105434,-500.0,0.00023287,4]
[346101161,1734705105446,-500.0,0.00023287,4]
[346101162,1734705105455,-1177.85,0.00023287,4]
[346101163,1734705105464,-500.0,0.00023287,4]
[346101164,1734705105474,-654.6,0.00023287,4]
[346101165,1734705105483,-500.0,0.00023287,4]
[346101166,1734705105492,-500.0,0.00023287,4]
[346101167,1734705105502,-500.0,0.00023287,4]
[346101168,1734705105511,-500.0,0.00023287,4]
[346101169,1734705105520,-500.0,0.00023287,4]
[346101170,1734705105529,-563.99,0.00023287,4]
[346101171,1734705105539,-500.0,0.00023287,4]
[346101172,1734705105554,-1056.52,0.00023287,4]
[346101173,1734705105570,-500.0,0.00023287,4]
[346101174,1734705105579,-500.0,0.00023287,4]
[346101175,1734705105588,-638.16828844,0.00023287,4]
[346101176,1734705105597,-500.0,0.00023287,4]
[346101177,1734705105606,-500.0,0.00023287,4]
[346101178,1734705105615,-500.0,0.00023287,4]
[346101179,1734705105624,-500.0,0.00023287,4]
[346101180,1734705105634,-500.0,0.00023287,4]
[346101181,1734705105643,-500.0,0.00023287,4]
[346101182,1734705105652,-500.0,0.00023287,4]
[346101183,1734705105662,-500.0,0.00023287,4]
[346101184,1734705105671,-500.0,0.00023287,4]
[346101185,1734705105680,-500.0,0.00023287,4]
[346101186,1734705105689,-500.0,0.00023287,4]
[346101187,1734705105701,-500.0,0.00023287,4]
[346101188,1734705105714,-500.0,0.00023287,4]
[346101189,1734705105723,-500.0,0.00023287,4]
[346101190,1734705105732,-500.0,0.00023287,4]
[346101191,1734705105742,-500.0,0.00023287,4]
[346101192,1734705105751,-500.0,0.00023287,4]
[346101193,1734705105760,-500.0,0.00023287,4]
[346101194,1734705105769,-500.0,0.00023287,4]
[346101195,1734705105778,-500.0,0.00023287,4]
[346101196,1734705105788,-500.0,0.00023287,4]
[346101197,1734705105797,-500.0,0.00023287,4]
[346101198,1734705105807,-500.0,0.00023287,4]
[346101199,1734705105816,-772.0,0.00023287,4]
[346101200,1734705105826,-500.0,0.00023287,4]
[346101201,1734705105835,-500.0,0.00023287,4]
[346101202,1734705105844,-521.12434114,0.00023287,4]
[346101203,1734705105854,-500.0,0.00023287,4]
[346101204,1734705105863,-500.0,0.00023287,4]
[346101205,1734705105873,-500.0,0.00023287,4]
[346101206,1734705105882,-500.0,0.00023287,4]
[346101207,1734705105891,-500.0,0.00023287,4]
[346101208,1734705105900,-500.0,0.00023287,4]
[346101209,1734705105909,-500.0,0.00023287,4]
[346101210,1734705105918,-500.0,0.00023287,4]
[346101211,1734705105928,-500.0,0.00023287,4]
[346101212,1734705105938,-500.0,0.00023287,4]
[346101213,1734705105950,-500.0,0.00023287,4]
[346101214,1734705105959,-500.0,0.00023287,4]
[346101215,1734705105968,-500.0,0.00023287,4]
[346101216,1734705105978,-500.0,0.00023287,4]